[Event "Titled Tuesday Blitz November 08 Late 2022"]
[White "Ansh M Shah"]
[Black "Alfaro, William"]
[WhiteFideId "25033379"]
[BlackFideId "6100457"]
[WhiteElo "2084"]
[BlackElo "2096"]
[Result "1-0"]
[Round "07"]
[TimeControl "180+1"]
[Date "2022.11.09"]
[WhiteClock "0:02:25"]
[BlackClock "0:02:03"]

1. d4 {[%clk 0:03:00]}  Nf6 {[%clk 0:02:59]} 2. c4 {[%clk 0:03:01]}  g6 {[%clk 0:02:57]} 3. h4 {[%clk 0:03:01]}  h5 {[%clk 0:02:56]} 4. Nc3 {[%clk 0:02:56]}  d6 {[%clk 0:02:55]} 5. e4 {[%clk 0:02:56]}  Bg7 {[%clk 0:02:54]} 6. Be2 {[%clk 0:02:57]}  Nc6 {[%clk 0:02:53]} 7. Nf3 {[%clk 0:02:57]}  O-O {[%clk 0:02:50]} 8. d5 {[%clk 0:02:56]}  Ne5 {[%clk 0:02:50]} 9. Nxe5 {[%clk 0:02:56]}  dxe5 {[%clk 0:02:51]} 10. Be3 {[%clk 0:02:56]}  c6 {[%clk 0:02:50]} 11. f3 {[%clk 0:02:56]}  cxd5 {[%clk 0:02:49]} 12. cxd5 {[%clk 0:02:57]}  e6 {[%clk 0:02:49]} 13. dxe6 {[%clk 0:02:57]}  Bxe6 {[%clk 0:02:49]} 14. O-O {[%clk 0:02:57]}  Qxd1 {[%clk 0:02:38]} 15. Rfxd1 {[%clk 0:02:57]}  Rfd8 {[%clk 0:02:38]} 16. b3 {[%clk 0:02:51]}  Rxd1+ {[%clk 0:02:31]} 17. Rxd1 {[%clk 0:02:50]}  Rc8 {[%clk 0:02:31]} 18. Rc1 {[%clk 0:02:46]}  a6 {[%clk 0:02:30]} 19. Na4 {[%clk 0:02:46]}  Rxc1+ {[%clk 0:02:29]} 20. Bxc1 {[%clk 0:02:47]}  Nd7 {[%clk 0:02:28]} 21. Be3 {[%clk 0:02:45]}  Bf8 {[%clk 0:02:29]} 22. Kf2 {[%clk 0:02:43]}  Be7 {[%clk 0:02:28]} 23. g3 {[%clk 0:02:44]}  Kf8 {[%clk 0:02:28]} 24. Ke1 {[%clk 0:02:42]}  f5 {[%clk 0:02:28]} 25. exf5 {[%clk 0:02:42]}  gxf5 {[%clk 0:02:27]} 26. f4 {[%clk 0:02:42]}  exf4 {[%clk 0:02:27]} 27. Bxf4 {[%clk 0:02:42]}  Bf7 {[%clk 0:02:27]} 28. Bd3 {[%clk 0:02:39]}  Bg6 {[%clk 0:02:26]} 29. Kd2 {[%clk 0:02:39]}  Bf6 {[%clk 0:02:22]} 30. Nc3 {[%clk 0:02:36]}  Nb6 {[%clk 0:02:15]} 31. Be3 {[%clk 0:02:31]}  Nd7 {[%clk 0:02:08]} 32. Ne2 {[%clk 0:02:28]}  Be5 {[%clk 0:02:07]} 33. Bf4 {[%clk 0:02:27]}  Bf6 {[%clk 0:02:06]} 34. Bd6+ {[%clk 0:02:25]}  Ke8 {[%clk 0:02:03]} 35. Nf4 {[%clk 0:02:25]} 1-0


[Site "https://www.chess.com"]

[Event "Titled Tuesday Blitz November 08 Late 2022"]
[White "Barria Zuniga, Daniel"]
[Black "Oglaza, Oskar"]
[WhiteFideId "3400816"]
[BlackFideId "1194402"]
[WhiteElo "2414"]
[BlackElo "2204"]
[Result "1-0"]
[Round "07"]
[TimeControl "180+1"]
[Date "2022.11.09"]
[WhiteClock "0:01:19"]
[BlackClock "0:00:12"]

1. d4 {[%clk 0:03:00]}  Nf6 {[%clk 0:02:58]} 2. c4 {[%clk 0:03:01]}  c5 {[%clk 0:02:58]} 3. d5 {[%clk 0:03:01]}  b5 {[%clk 0:02:59]} 4. Qc2 {[%clk 0:03:00]}  bxc4 {[%clk 0:02:48]} 5. e4 {[%clk 0:02:59]}  e6 {[%clk 0:02:47]} 6. Nc3 {[%clk 0:02:58]}  Bb7 {[%clk 0:02:35]} 7. Bxc4 {[%clk 0:02:54]}  exd5 {[%clk 0:02:32]} 8. exd5 {[%clk 0:02:55]}  Bd6 {[%clk 0:02:29]} 9. Nf3 {[%clk 0:02:32]}  O-O {[%clk 0:02:21]} 10. O-O {[%clk 0:02:32]}  h6 {[%clk 0:02:12]} 11. Rd1 {[%clk 0:02:25]}  Re8 {[%clk 0:01:53]} 12. h3 {[%clk 0:02:21]}  Ba6 {[%clk 0:01:13]} 13. Nb5 {[%clk 0:02:08]}  Qb6 {[%clk 0:01:09]} 14. a4 {[%clk 0:02:03]}  Bxb5 {[%clk 0:00:54]} 15. axb5 {[%clk 0:01:59]}  Bc7 {[%clk 0:00:37]} 16. Be3 {[%clk 0:01:56]}  d6 {[%clk 0:00:35]} 17. b4 {[%clk 0:01:52]}  Nbd7 {[%clk 0:00:35]} 18. Ra6 {[%clk 0:01:50]}  Qb7 {[%clk 0:00:32]} 19. bxc5 {[%clk 0:01:46]}  Nxc5 {[%clk 0:00:31]} 20. Rc6 {[%clk 0:01:37]}  Nfe4 {[%clk 0:00:20]} 21. Nd4 {[%clk 0:01:35]}  Bb6 {[%clk 0:00:20]} 22. Nf5 {[%clk 0:01:34]}  Qd7 {[%clk 0:00:20]} 23. Nxd6 {[%clk 0:01:22]}  Nxd6 {[%clk 0:00:18]} 24. Bxc5 {[%clk 0:01:22]}  Bxc5 {[%clk 0:00:18]} 25. Rxc5 {[%clk 0:01:21]}  Rac8 {[%clk 0:00:10]} 26. Rc6 {[%clk 0:01:20]}  a6 {[%clk 0:00:11]} 27. bxa6 {[%clk 0:01:19]}  Rxc6 {[%clk 0:00:11]} 28. dxc6 {[%clk 0:01:19]}  Qxc6 {[%clk 0:00:12]} 29. Bxf7+ {[%clk 0:01:19]} 1-0


[Site "https://www.chess.com"]

[Event "Titled Tuesday Blitz November 08 Late 2022"]
[White "Becerra, Juan David"]
[Black "Goltsev, Dmitry"]
[WhiteFideId "4404998"]
[BlackFideId "24176710"]
[WhiteElo "2281"]
[BlackElo "2289"]
[Result "1-0"]
[Round "07"]
[TimeControl "180+1"]
[Date "2022.11.09"]
[WhiteClock "0:00:12"]
[BlackClock "0:00:31"]

1. e4 {[%clk 0:02:58]}  e6 {[%clk 0:02:59]} 2. d3 {[%clk 0:02:51]}  d5 {[%clk 0:03:00]} 3. Qe2 {[%clk 0:02:51]}  Nf6 {[%clk 0:03:00]} 4. g3 {[%clk 0:02:48]}  c5 {[%clk 0:02:59]} 5. Bg2 {[%clk 0:02:47]}  Nc6 {[%clk 0:02:57]} 6. Nf3 {[%clk 0:02:47]}  dxe4 {[%clk 0:02:52]} 7. dxe4 {[%clk 0:02:47]}  e5 {[%clk 0:02:52]} 8. h3 {[%clk 0:02:44]}  h6 {[%clk 0:02:49]} 9. O-O {[%clk 0:02:40]}  Be6 {[%clk 0:02:47]} 10. c3 {[%clk 0:02:31]}  Qc7 {[%clk 0:02:41]} 11. Na3 {[%clk 0:02:30]}  Be7 {[%clk 0:02:36]} 12. Rd1 {[%clk 0:02:19]}  O-O {[%clk 0:02:35]} 13. Nc4 {[%clk 0:02:06]}  b5 {[%clk 0:02:33]} 14. Ne3 {[%clk 0:02:03]}  Nxe4 {[%clk 0:02:33]} 15. Nd5 {[%clk 0:02:03]}  Bxd5 {[%clk 0:02:30]} 16. Rxd5 {[%clk 0:02:04]}  Nf6 {[%clk 0:02:30]} 17. Rd1 {[%clk 0:01:51]}  a6 {[%clk 0:02:29]} 18. Nh4 {[%clk 0:01:45]}  Rfd8 {[%clk 0:02:25]} 19. Be3 {[%clk 0:01:44]}  Rxd1+ {[%clk 0:02:21]} 20. Rxd1 {[%clk 0:01:44]}  Rd8 {[%clk 0:02:22]} 21. Nf5 {[%clk 0:01:40]}  Bf8 {[%clk 0:02:19]} 22. Bxc6 {[%clk 0:00:50]}  Rxd1+ {[%clk 0:02:17]} 23. Qxd1 {[%clk 0:00:51]}  Qxc6 {[%clk 0:02:18]} 24. Qd8 {[%clk 0:00:51]}  Qd7 {[%clk 0:02:17]} 25. Nxh6+ {[%clk 0:00:51]}  gxh6 {[%clk 0:01:51]} 26. Qxf6 {[%clk 0:00:51]}  Qxh3 {[%clk 0:01:49]} 27. Qxe5 {[%clk 0:00:48]}  Qe6 {[%clk 0:01:48]} 28. Qxe6 {[%clk 0:00:46]}  fxe6 {[%clk 0:01:49]} 29. Kg2 {[%clk 0:00:46]}  Kf7 {[%clk 0:01:50]} 30. Kf3 {[%clk 0:00:47]}  Kg6 {[%clk 0:01:50]} 31. g4 {[%clk 0:00:46]}  Bd6 {[%clk 0:01:47]} 32. Ke4 {[%clk 0:00:45]}  h5 {[%clk 0:01:47]} 33. gxh5+ {[%clk 0:00:45]}  Kxh5 {[%clk 0:01:48]} 34. Bf4 {[%clk 0:00:40]}  Bf8 {[%clk 0:01:30]} 35. Ke5 {[%clk 0:00:39]}  Kg4 {[%clk 0:01:27]} 36. Be3 {[%clk 0:00:36]}  Kf3 {[%clk 0:01:22]} 37. Kxe6 {[%clk 0:00:34]}  Ke2 {[%clk 0:01:21]} 38. Kd5 {[%clk 0:00:34]}  c4 {[%clk 0:01:13]} 39. Bc5 {[%clk 0:00:29]}  Bh6 {[%clk 0:01:05]} 40. Kc6 {[%clk 0:00:26]}  Kd3 {[%clk 0:00:59]} 41. Kb6 {[%clk 0:00:22]}  Kc2 {[%clk 0:00:51]} 42. Kxa6 {[%clk 0:00:20]}  Kxb2 {[%clk 0:00:50]} 43. Kxb5 {[%clk 0:00:18]}  Kxc3 {[%clk 0:00:50]} 44. a4 {[%clk 0:00:18]}  Kb3 {[%clk 0:00:49]} 45. Bb4 {[%clk 0:00:17]}  c3 {[%clk 0:00:43]} 46. Bxc3 {[%clk 0:00:15]}  Kxc3 {[%clk 0:00:44]} 47. a5 {[%clk 0:00:16]}  Bg7 {[%clk 0:00:42]} 48. a6 {[%clk 0:00:16]}  Bd4 {[%clk 0:00:41]} 49. f4 {[%clk 0:00:17]}  Kd3 {[%clk 0:00:28]} 50. f5 {[%clk 0:00:16]}  Ke4 {[%clk 0:00:29]} 51. f6 {[%clk 0:00:15]}  Bxf6 {[%clk 0:00:29]} 52. a7 {[%clk 0:00:15]}  Bd4 {[%clk 0:00:30]} 53. a8=Q+ {[%clk 0:00:16]}  Kd3 {[%clk 0:00:30]} 54. Qd5 {[%clk 0:00:15]}  Ke3 {[%clk 0:00:30]} 55. Kc4 {[%clk 0:00:15]}  Bb2 {[%clk 0:00:29]} 56. Qd3+ {[%clk 0:00:14]}  Kf2 {[%clk 0:00:28]} 57. Qd2+ {[%clk 0:00:14]}  Kf3 {[%clk 0:00:29]} 58. Qxb2 {[%clk 0:00:15]}  Ke3 {[%clk 0:00:30]} 59. Qc2 {[%clk 0:00:11]}  Kf4 {[%clk 0:00:30]} 60. Kd4 {[%clk 0:00:10]}  Kg5 {[%clk 0:00:30]} 61. Qf2 {[%clk 0:00:10]}  Kg4 {[%clk 0:00:30]} 62. Ke5 {[%clk 0:00:10]}  Kg5 {[%clk 0:00:31]} 63. Qg3+ {[%clk 0:00:10]}  Kh6 {[%clk 0:00:31]} 64. Kf6 {[%clk 0:00:11]}  Kh5 {[%clk 0:00:31]} 65. Qh3# {[%clk 0:00:12]} 1-0


[Site "https://www.chess.com"]

[Event "Titled Tuesday Blitz November 08 Late 2022"]
[White "Bilan, Danila"]
[Black "Kaganskiy, Gleb"]
[WhiteFideId "24161918"]
[BlackFideId "4132025"]
[WhiteElo "2173"]
[BlackElo "2165"]
[Result "1-0"]
[Round "07"]
[TimeControl "180+1"]
[Date "2022.11.09"]
[WhiteClock "0:00:08"]
[BlackClock "0:00:01"]

1. d4 {[%clk 0:03:00]}  Nf6 {[%clk 0:02:42]} 2. Nf3 {[%clk 0:03:00]}  d5 {[%clk 0:02:40]} 3. c4 {[%clk 0:03:00]}  e6 {[%clk 0:02:38]} 4. g3 {[%clk 0:02:53]}  Be7 {[%clk 0:02:38]} 5. Bg2 {[%clk 0:02:53]}  O-O {[%clk 0:02:38]} 6. O-O {[%clk 0:02:54]}  dxc4 {[%clk 0:02:39]} 7. Qa4 {[%clk 0:02:53]}  a6 {[%clk 0:02:32]} 8. Qxc4 {[%clk 0:02:53]}  Nc6 {[%clk 0:02:32]} 9. Bf4 {[%clk 0:02:49]}  Rb8 {[%clk 0:02:25]} 10. Nc3 {[%clk 0:02:45]}  Nd5 {[%clk 0:02:20]} 11. Rfd1 {[%clk 0:02:29]}  Nxf4 {[%clk 0:02:16]} 12. gxf4 {[%clk 0:02:26]}  Nb4 {[%clk 0:01:53]} 13. Ne5 {[%clk 0:02:17]}  c6 {[%clk 0:01:43]} 14. e4 {[%clk 0:02:06]}  a5 {[%clk 0:01:21]} 15. a3 {[%clk 0:01:58]}  Na6 {[%clk 0:01:20]} 16. Rac1 {[%clk 0:01:58]}  Nc7 {[%clk 0:01:20]} 17. Qe2 {[%clk 0:01:39]}  Bd7 {[%clk 0:01:11]} 18. Na4 {[%clk 0:01:34]}  Be8 {[%clk 0:01:08]} 19. Nc5 {[%clk 0:01:26]}  f6 {[%clk 0:01:00]} 20. Nc4 {[%clk 0:01:18]}  b6 {[%clk 0:01:00]} 21. Nb3 {[%clk 0:01:13]}  a4 {[%clk 0:00:58]} 22. Na1 {[%clk 0:01:08]}  b5 {[%clk 0:00:58]} 23. Ne3 {[%clk 0:01:06]}  Kh8 {[%clk 0:00:24]} 24. Nac2 {[%clk 0:01:06]}  Qc8 {[%clk 0:00:21]} 25. Nb4 {[%clk 0:01:02]}  Qb7 {[%clk 0:00:20]} 26. Rd2 {[%clk 0:00:55]}  Bxb4 {[%clk 0:00:19]} 27. axb4 {[%clk 0:00:56]}  Qb6 {[%clk 0:00:19]} 28. Rc3 {[%clk 0:00:30]}  Na6 {[%clk 0:00:18]} 29. Nc2 {[%clk 0:00:29]}  Rd8 {[%clk 0:00:16]} 30. e5 {[%clk 0:00:21]}  fxe5 {[%clk 0:00:11]} 31. fxe5 {[%clk 0:00:22]}  Rf7 {[%clk 0:00:05]} 32. Rh3 {[%clk 0:00:20]}  Rf4 {[%clk 0:00:03]} 33. Be4 {[%clk 0:00:19]}  g6 {[%clk 0:00:02]} 34. Qe3 {[%clk 0:00:18]}  Rf7 {[%clk 0:00:01]} 35. Bxg6 {[%clk 0:00:18]}  Rg7 {[%clk 0:00:02]} 36. Rxh7+ {[%clk 0:00:14]}  Rxh7 {[%clk 0:00:02]} 37. Bxh7 {[%clk 0:00:15]}  Kxh7 {[%clk 0:00:02]} 38. Rd3 {[%clk 0:00:15]}  Bh5 {[%clk 0:00:02]} 39. Qh3 {[%clk 0:00:14]}  Rg8+ {[%clk 0:00:03]} 40. Kf1 {[%clk 0:00:13]}  Rg5 {[%clk 0:00:04]} 41. Rg3 {[%clk 0:00:13]}  Kh6 {[%clk 0:00:03]} 42. f4 {[%clk 0:00:10]}  Rxg3 {[%clk 0:00:03]} 43. hxg3 {[%clk 0:00:10]}  Qd8 {[%clk 0:00:03]} 44. Qxe6+ {[%clk 0:00:10]}  Kh7 {[%clk 0:00:01]} 45. Qxc6 {[%clk 0:00:08]}  Qg8 {[%clk 0:00:02]} 46. Qb7+ {[%clk 0:00:07]}  Kh8 {[%clk 0:00:02]} 47. Qxa6 {[%clk 0:00:07]}  Qxg3 {[%clk 0:00:01]} 48. Qh6+ {[%clk 0:00:07]}  Kg8 {[%clk 0:00:01]} 49. Qg5+ {[%clk 0:00:08]} 1-0


[Site "https://www.chess.com"]

[Event "Titled Tuesday Blitz November 08 Late 2022"]
[White "Bogaudinov, Rushan"]
[Black "Ramirez, Maria Eugenia"]
[WhiteFideId "4129288"]
[BlackFideId "3301680"]
[WhiteElo "1997"]
[BlackElo "1941"]
[Result "0-1"]
[Round "07"]
[TimeControl "180+1"]
[Date "2022.11.09"]
[WhiteClock "0:00:31"]
[BlackClock "0:00:20"]

1. a3 {[%clk 0:02:59]}  Nf6 {[%clk 0:02:59]} 2. b4 {[%clk 0:02:59]}  e6 {[%clk 0:02:59]} 3. d4 {[%clk 0:02:58]}  d6 {[%clk 0:02:57]} 4. Bb2 {[%clk 0:02:56]}  Be7 {[%clk 0:02:57]} 5. g3 {[%clk 0:02:55]}  O-O {[%clk 0:02:56]} 6. Bg2 {[%clk 0:02:56]}  c5 {[%clk 0:02:55]} 7. e3 {[%clk 0:02:48]}  cxd4 {[%clk 0:02:49]} 8. exd4 {[%clk 0:02:41]}  d5 {[%clk 0:02:48]} 9. Nd2 {[%clk 0:02:39]}  a5 {[%clk 0:02:41]} 10. c3 {[%clk 0:02:38]}  Bd6 {[%clk 0:02:35]} 11. Ne2 {[%clk 0:02:38]}  Re8 {[%clk 0:02:25]} 12. O-O {[%clk 0:02:38]}  e5 {[%clk 0:02:25]} 13. dxe5 {[%clk 0:02:38]}  Bxe5 {[%clk 0:02:25]} 14. Nf3 {[%clk 0:02:30]}  Bc7 {[%clk 0:02:24]} 15. Ned4 {[%clk 0:02:29]}  Nc6 {[%clk 0:02:21]} 16. Nb5 {[%clk 0:02:29]}  Bb6 {[%clk 0:02:19]} 17. Qd3 {[%clk 0:02:20]}  Bg4 {[%clk 0:02:11]} 18. h3 {[%clk 0:02:18]}  Bxf3 {[%clk 0:02:02]} 19. Qxf3 {[%clk 0:02:19]}  Ne5 {[%clk 0:02:00]} 20. Qf4 {[%clk 0:02:18]}  Nd3 {[%clk 0:01:58]} 21. Qd2 {[%clk 0:02:17]}  Nxb2 {[%clk 0:01:49]} 22. Qxb2 {[%clk 0:02:17]}  Qd7 {[%clk 0:01:45]} 23. a4 {[%clk 0:02:14]}  axb4 {[%clk 0:01:43]} 24. cxb4 {[%clk 0:02:14]}  Ne4 {[%clk 0:01:37]} 25. Kh2 {[%clk 0:02:11]}  h5 {[%clk 0:01:34]} 26. h4 {[%clk 0:01:59]}  Nf6 {[%clk 0:01:19]} 27. Bf3 {[%clk 0:01:49]}  Ng4+ {[%clk 0:01:16]} 28. Kg2 {[%clk 0:01:46]}  Ne5 {[%clk 0:01:14]} 29. Bxh5 {[%clk 0:01:42]}  g6 {[%clk 0:01:06]} 30. Be2 {[%clk 0:01:37]}  d4 {[%clk 0:00:54]} 31. a5 {[%clk 0:01:37]}  d3 {[%clk 0:00:47]} 32. axb6 {[%clk 0:01:24]}  dxe2 {[%clk 0:00:44]} 33. Qxe2 {[%clk 0:01:18]}  Rxa1 {[%clk 0:00:35]} 34. Rxa1 {[%clk 0:01:17]}  Nd3 {[%clk 0:00:33]} 35. Qf3 {[%clk 0:00:42]}  Qxb5 {[%clk 0:00:32]} 36. Qxb7 {[%clk 0:00:38]}  Re2 {[%clk 0:00:23]} 37. Rf1 {[%clk 0:00:31]}  Qf5 {[%clk 0:00:20]} 0-1


[Site "https://www.chess.com"]

[Event "Titled Tuesday Blitz November 08 Late 2022"]
[White "Bortnyk, Olexandr"]
[Black "Kozak, Adam"]
[WhiteFideId "14120828"]
[BlackFideId "753246"]
[WhiteElo "2723"]
[BlackElo "2459"]
[Result "1-0"]
[Round "07"]
[TimeControl "180+1"]
[Date "2022.11.08"]
[WhiteClock "0:00:25"]
[BlackClock "0:00:01"]

1. e4 {[%clk 0:03:00]}  e5 {[%clk 0:02:58]} 2. Nf3 {[%clk 0:03:00]}  Nc6 {[%clk 0:02:58]} 3. Bb5 {[%clk 0:03:00]}  Nf6 {[%clk 0:02:58]} 4. Qe2 {[%clk 0:03:00]}  Bd6 {[%clk 0:02:57]} 5. c3 {[%clk 0:02:59]}  O-O {[%clk 0:02:57]} 6. d3 {[%clk 0:03:00]}  a6 {[%clk 0:02:57]} 7. Ba4 {[%clk 0:03:00]}  b5 {[%clk 0:02:55]} 8. Bc2 {[%clk 0:03:00]}  Be7 {[%clk 0:02:55]} 9. Nbd2 {[%clk 0:03:01]}  d6 {[%clk 0:02:56]} 10. h3 {[%clk 0:03:02]}  Nb8 {[%clk 0:02:54]} 11. g4 {[%clk 0:03:01]}  Nbd7 {[%clk 0:02:54]} 12. Nf1 {[%clk 0:03:02]}  Re8 {[%clk 0:02:54]} 13. Ng3 {[%clk 0:03:01]}  Nf8 {[%clk 0:02:54]} 14. Nf5 {[%clk 0:02:58]}  Ng6 {[%clk 0:02:50]} 15. Be3 {[%clk 0:02:56]}  d5 {[%clk 0:02:47]} 16. O-O-O {[%clk 0:02:50]}  b4 {[%clk 0:02:45]} 17. c4 {[%clk 0:02:49]}  c6 {[%clk 0:02:42]} 18. g5 {[%clk 0:02:49]}  Nh5 {[%clk 0:02:40]} 19. Nxe5 {[%clk 0:02:48]}  Nhf4 {[%clk 0:02:14]} 20. Qf3 {[%clk 0:02:40]}  Nxe5 {[%clk 0:01:37]} 21. Qxf4 {[%clk 0:02:39]}  Ng6 {[%clk 0:01:38]} 22. Qg3 {[%clk 0:02:37]}  Bxf5 {[%clk 0:01:25]} 23. exf5 {[%clk 0:02:38]}  Bd6 {[%clk 0:01:25]} 24. Qg4 {[%clk 0:02:38]}  Ne5 {[%clk 0:01:24]} 25. Qe2 {[%clk 0:02:35]}  d4 {[%clk 0:01:22]} 26. Bxd4 {[%clk 0:02:27]}  Nxc4 {[%clk 0:01:07]} 27. Qg4 {[%clk 0:02:27]}  Ne5 {[%clk 0:01:04]} 28. Bxe5 {[%clk 0:02:27]}  Bxe5 {[%clk 0:01:05]} 29. d4 {[%clk 0:02:28]}  Bd6 {[%clk 0:01:01]} 30. g6 {[%clk 0:02:29]}  fxg6 {[%clk 0:01:01]} 31. fxg6 {[%clk 0:02:28]}  h6 {[%clk 0:01:01]} 32. Rd3 {[%clk 0:02:20]}  Rf8 {[%clk 0:00:51]} 33. Rf3 {[%clk 0:02:18]}  Rxf3 {[%clk 0:00:48]} 34. Qxf3 {[%clk 0:02:19]}  Kh8 {[%clk 0:00:48]} 35. Qxc6 {[%clk 0:02:15]}  Rc8 {[%clk 0:00:45]} 36. Qxa6 {[%clk 0:02:14]}  b3 {[%clk 0:00:23]} 37. axb3 {[%clk 0:02:11]}  Ra8 {[%clk 0:00:23]} 38. Qb5 {[%clk 0:01:38]}  Bf4+ {[%clk 0:00:18]} 39. Kb1 {[%clk 0:01:33]}  Qxd4 {[%clk 0:00:10]} 40. Re1 {[%clk 0:01:32]}  Rf8 {[%clk 0:00:03]} 41. Re8 {[%clk 0:01:11]}  Qf6 {[%clk 0:00:03]} 42. Rxf8+ {[%clk 0:00:57]}  Qxf8 {[%clk 0:00:03]} 43. Qf5 {[%clk 0:00:57]}  Qb8 {[%clk 0:00:03]} 44. Qe6 {[%clk 0:00:51]}  Be5 {[%clk 0:00:03]} 45. Be4 {[%clk 0:00:49]}  Bf6 {[%clk 0:00:02]} 46. Bd5 {[%clk 0:00:44]}  Qd8 {[%clk 0:00:02]} 47. b4 {[%clk 0:00:43]}  Qb8 {[%clk 0:00:02]} 48. b5 {[%clk 0:00:43]}  Bd4 {[%clk 0:00:03]} 49. f4 {[%clk 0:00:41]}  Qd8 {[%clk 0:00:02]} 50. Kc2 {[%clk 0:00:26]}  Qb8 {[%clk 0:00:02]} 51. Kd3 {[%clk 0:00:26]}  Bxb2 {[%clk 0:00:02]} 52. b6 {[%clk 0:00:25]}  Ba1 {[%clk 0:00:01]} 53. b7 {[%clk 0:00:25]} 1-0


[Site "https://www.chess.com"]

[Event "Titled Tuesday Blitz November 08 Late 2022"]
[White "Chigaev, Maksim"]
[Black "Firouzja, Alireza"]
[WhiteFideId "4108116"]
[BlackFideId "12573981"]
[WhiteElo "2541"]
[BlackElo "2903"]
[Result "0-1"]
[Round "07"]
[TimeControl "180+1"]
[Date "2022.11.08"]
[WhiteClock "0:00:02"]
[BlackClock "0:00:32"]

1. Nf3 {[%clk 0:03:00]}  d6 {[%clk 0:03:00]} 2. c4 {[%clk 0:02:55]}  Nf6 {[%clk 0:03:00]} 3. Nc3 {[%clk 0:02:52]}  g6 {[%clk 0:03:00]} 4. e4 {[%clk 0:02:51]}  Bg7 {[%clk 0:03:01]} 5. d4 {[%clk 0:02:52]}  O-O {[%clk 0:03:01]} 6. Be2 {[%clk 0:02:53]}  e5 {[%clk 0:03:00]} 7. O-O {[%clk 0:02:53]}  Nbd7 {[%clk 0:03:00]} 8. Be3 {[%clk 0:02:52]}  c6 {[%clk 0:03:00]} 9. d5 {[%clk 0:02:53]}  c5 {[%clk 0:03:01]} 10. Bg5 {[%clk 0:02:53]}  Kh8 {[%clk 0:03:00]} 11. a3 {[%clk 0:02:44]}  a6 {[%clk 0:03:00]} 12. b4 {[%clk 0:02:44]}  Qc7 {[%clk 0:03:00]} 13. Qd2 {[%clk 0:02:33]}  Ng8 {[%clk 0:03:00]} 14. Be3 {[%clk 0:02:20]}  f5 {[%clk 0:02:57]} 15. Qc2 {[%clk 0:02:06]}  f4 {[%clk 0:02:50]} 16. Bd2 {[%clk 0:02:06]}  Qd8 {[%clk 0:02:49]} 17. Rab1 {[%clk 0:02:04]}  g5 {[%clk 0:02:49]} 18. h3 {[%clk 0:02:00]}  h5 {[%clk 0:02:49]} 19. Nh2 {[%clk 0:01:59]}  Ngf6 {[%clk 0:02:46]} 20. Qd1 {[%clk 0:01:58]}  Qe8 {[%clk 0:02:46]} 21. Na4 {[%clk 0:01:54]}  g4 {[%clk 0:02:26]} 22. hxg4 {[%clk 0:01:51]}  Nxe4 {[%clk 0:02:25]} 23. bxc5 {[%clk 0:01:46]}  hxg4 {[%clk 0:02:17]} 24. Bxg4 {[%clk 0:01:25]}  Ndf6 {[%clk 0:01:58]} 25. Bxc8 {[%clk 0:01:18]}  Rxc8 {[%clk 0:01:58]} 26. Ba5 {[%clk 0:00:16]}  dxc5 {[%clk 0:01:57]} 27. Nb6 {[%clk 0:00:14]}  Rd8 {[%clk 0:01:55]} 28. Re1 {[%clk 0:00:15]}  Nd6 {[%clk 0:01:54]} 29. Rb3 {[%clk 0:00:13]}  e4 {[%clk 0:01:51]} 30. Rh3+ {[%clk 0:00:14]}  Kg8 {[%clk 0:01:51]} 31. Na4 {[%clk 0:00:14]}  Rc8 {[%clk 0:01:48]} 32. Nb6 {[%clk 0:00:13]}  Rc7 {[%clk 0:01:48]} 33. Ng4 {[%clk 0:00:11]}  Nh7 {[%clk 0:01:45]} 34. Na4 {[%clk 0:00:07]}  Rc8 {[%clk 0:01:43]} 35. Nh6+ {[%clk 0:00:06]}  Kh8 {[%clk 0:01:34]} 36. Bc3 {[%clk 0:00:05]}  Qg6 {[%clk 0:01:28]} 37. Qg4 {[%clk 0:00:06]}  Qxg4 {[%clk 0:01:17]} 38. Nxg4 {[%clk 0:00:07]}  b5 {[%clk 0:01:09]} 39. cxb5 {[%clk 0:00:07]}  axb5 {[%clk 0:01:10]} 40. Bxg7+ {[%clk 0:00:07]}  Kxg7 {[%clk 0:01:11]} 41. Nc3 {[%clk 0:00:06]}  Rfe8 {[%clk 0:01:07]} 42. Rh6 {[%clk 0:00:05]}  Rcd8 {[%clk 0:00:41]} 43. Re6 {[%clk 0:00:05]}  Ng5 {[%clk 0:00:41]} 44. Rxe8 {[%clk 0:00:04]}  Rxe8 {[%clk 0:00:42]} 45. Rb1 {[%clk 0:00:03]}  e3 {[%clk 0:00:40]} 46. fxe3 {[%clk 0:00:03]}  fxe3 {[%clk 0:00:41]} 47. Re1 {[%clk 0:00:01]}  b4 {[%clk 0:00:38]} 48. axb4 {[%clk 0:00:02]}  cxb4 {[%clk 0:00:39]} 49. Nb1 {[%clk 0:00:02]}  Nc4 {[%clk 0:00:38]} 50. d6 {[%clk 0:00:02]}  Nf7 {[%clk 0:00:31]} 51. d7 {[%clk 0:00:02]}  Re7 {[%clk 0:00:32]} 0-1


[Site "https://www.chess.com"]

[Event "Titled Tuesday Blitz November 08 Late 2022"]
[White "Clawitter, Craig"]
[Black "Kaplan, Avi Harrison"]
[WhiteFideId "2023105"]
[BlackFideId "30934559"]
[WhiteElo "2163"]
[BlackElo "1983"]
[Result "0-1"]
[Round "07"]
[TimeControl "180+1"]
[Date "2022.11.09"]
[WhiteClock "0:00:01"]
[BlackClock "0:00:41"]

1. e4 {[%clk 0:03:00]}  c5 {[%clk 0:02:59]} 2. Nf3 {[%clk 0:03:01]}  d6 {[%clk 0:02:59]} 3. d4 {[%clk 0:03:01]}  cxd4 {[%clk 0:03:00]} 4. Nxd4 {[%clk 0:03:02]}  Nf6 {[%clk 0:03:00]} 5. Nc3 {[%clk 0:03:03]}  a6 {[%clk 0:03:01]} 6. Be3 {[%clk 0:03:03]}  e5 {[%clk 0:03:00]} 7. Nb3 {[%clk 0:03:03]}  Be6 {[%clk 0:02:58]} 8. f3 {[%clk 0:03:04]}  h5 {[%clk 0:02:58]} 9. Be2 {[%clk 0:03:02]}  Nbd7 {[%clk 0:02:58]} 10. Nd5 {[%clk 0:02:59]}  Nxd5 {[%clk 0:02:56]} 11. exd5 {[%clk 0:03:00]}  Bf5 {[%clk 0:02:56]} 12. O-O {[%clk 0:02:46]}  Rc8 {[%clk 0:02:56]} 13. c4 {[%clk 0:02:45]}  Be7 {[%clk 0:02:54]} 14. Qd2 {[%clk 0:02:41]}  h4 {[%clk 0:02:47]} 15. Na5 {[%clk 0:02:28]}  Qc7 {[%clk 0:02:40]} 16. h3 {[%clk 0:02:18]}  Bd8 {[%clk 0:02:36]} 17. b4 {[%clk 0:02:15]}  Qb8 {[%clk 0:02:12]} 18. Nb3 {[%clk 0:02:04]}  O-O {[%clk 0:02:01]} 19. f4 {[%clk 0:01:56]}  Bb6 {[%clk 0:01:59]} 20. fxe5 {[%clk 0:01:48]}  Bxe3+ {[%clk 0:01:52]} 21. Qxe3 {[%clk 0:01:48]}  Nxe5 {[%clk 0:01:53]} 22. Rxf5 {[%clk 0:01:47]}  Nxc4 {[%clk 0:01:47]} 23. Bxc4 {[%clk 0:01:36]}  Rxc4 {[%clk 0:01:47]} 24. Rf4 {[%clk 0:01:31]}  Rfc8 {[%clk 0:01:42]} 25. Raf1 {[%clk 0:01:20]}  Rxf4 {[%clk 0:01:32]} 26. Qxf4 {[%clk 0:01:16]}  Qa7+ {[%clk 0:01:32]} 27. Qf2 {[%clk 0:01:14]}  b6 {[%clk 0:01:32]} 28. Qxh4 {[%clk 0:01:07]}  Rc2 {[%clk 0:01:29]} 29. Qd8+ {[%clk 0:00:53]}  Kh7 {[%clk 0:01:28]} 30. Qxd6 {[%clk 0:00:50]}  b5+ {[%clk 0:01:28]} 31. Nc5 {[%clk 0:00:39]}  a5 {[%clk 0:01:26]} 32. a3 {[%clk 0:00:37]}  Rc3 {[%clk 0:01:21]} 33. Rf3 {[%clk 0:00:29]}  axb4 {[%clk 0:01:18]} 34. axb4 {[%clk 0:00:25]}  Rc1+ {[%clk 0:01:15]} 35. Kh2 {[%clk 0:00:23]}  Qa1 {[%clk 0:01:15]} 36. Qf4 {[%clk 0:00:08]}  Rc4 {[%clk 0:01:10]} 37. Qxf7 {[%clk 0:00:07]}  Qe5+ {[%clk 0:01:10]} 38. Rg3 {[%clk 0:00:05]}  Rc3 {[%clk 0:01:07]} 39. Ne4 {[%clk 0:00:04]}  Rd3 {[%clk 0:01:00]} 40. Ng5+ {[%clk 0:00:04]}  Kh6 {[%clk 0:00:58]} 41. Ne4 {[%clk 0:00:01]}  Kh7 {[%clk 0:00:44]} 42. Qg6+ {[%clk 0:00:01]}  Kh8 {[%clk 0:00:41]} 0-1


[Site "https://www.chess.com"]